[Event "*** Titled Tuesday Blitz"]
[Site "Chess.com"]
[Date "2018.04.03"]
[Round "1"]
[White "Fighterman91"]
[Black "pedroholly22"]
[Result "1-0"]
[WhiteElo "2558"]
[BlackElo "2211"]
[TimeControl "180+2"]
[EndTime "13:08:07 PDT"]
[Termination "Fighterman91 won by checkmate"]

1. e4 {[%clk 0:02:58]} 1... c5 {[%clk 0:02:59.9]} 2. Nf3 {[%clk 0:02:49]} 2...
d6 {[%clk 0:02:57.7]} 3. d4 {[%clk 0:02:47.6]} 3... cxd4 {[%clk 0:02:58.4]} 4.
Nxd4 {[%clk 0:02:49.5]} 4... Nf6 {[%clk 0:02:58.1]} 5. Nc3 {[%clk 0:02:50.8]}
5... g6 {[%clk 0:02:58.3]} 6. Be3 {[%clk 0:02:50.8]} 6... Bg7 {[%clk 0:02:58.9]}
7. f3 {[%clk 0:02:49.3]} 7... O-O {[%clk 0:02:59.5]} 8. Qd2 {[%clk 0:02:49]}
8... Nc6 {[%clk 0:02:58.8]} 9. O-O-O {[%clk 0:02:43.7]} 9... d5 {[%clk
0:02:59.4]} 10. Nxc6 {[%clk 0:02:39.3]} 10... bxc6 {[%clk 0:02:59]} 11. Bh6
{[%clk 0:02:41.2]} 11... Be6 {[%clk 0:02:43]} 12. Bxg7 {[%clk 0:02:25.1]} 12...
Kxg7 {[%clk 0:02:44.6]} 13. h4 {[%clk 0:02:24.9]} 13... dxe4 {[%clk 0:02:38]}
14. Qe3 {[%clk 0:02:22.4]} 14... Qb6 {[%clk 0:02:36.5]} 15. Qxb6 {[%clk
0:02:18.1]} 15... axb6 {[%clk 0:02:38.3]} 16. fxe4 {[%clk 0:02:19.7]} 16... Ng4
{[%clk 0:02:15.6]} 17. Re1 {[%clk 0:02:14.6]} 17... b5 {[%clk 0:02:13.8]} 18. a3
{[%clk 0:02:15.7]} 18... Rfd8 {[%clk 0:01:59.5]} 19. Be2 {[%clk 0:02:01.9]}
19... b4 {[%clk 0:01:18.1]} 20. Bxg4 {[%clk 0:02:02.2]} 20... bxc3 {[%clk
0:01:18.6]} 21. Bxe6 {[%clk 0:02:02.8]} 21... cxb2+ {[%clk 0:01:19.3]} 22. Kxb2
{[%clk 0:02:04.1]} 22... fxe6 {[%clk 0:01:21.2]} 23. Re3 {[%clk 0:01:46.4]}
23... e5 {[%clk 0:01:15.4]} 24. Rd3 {[%clk 0:01:39.3]} 24... Rab8+ {[%clk
0:01:11.6]} 25. Kc3 {[%clk 0:01:37.8]} 25... Rd6 {[%clk 0:01:08.4]} 26. Ra1
{[%clk 0:01:34]} 26... c5 {[%clk 0:01:04.4]} 27. Rxd6 {[%clk 0:01:27.3]} 27...
exd6 {[%clk 0:01:04.5]} 28. a4 {[%clk 0:01:29.2]} 28... Kf6 {[%clk 0:00:56.4]}
29. a5 {[%clk 0:01:31.1]} 29... Ke6 {[%clk 0:00:58.1]} 30. a6 {[%clk 0:01:32.5]}
30... Ra8 {[%clk 0:00:54.3]} 31. a7 {[%clk 0:01:33.2]} 31... Kd7 {[%clk
0:00:54.9]} 32. Kc4 {[%clk 0:01:34.2]} 32... Kc6 {[%clk 0:00:55.9]} 33. Ra6+
{[%clk 0:01:33.8]} 33... Kb7 {[%clk 0:00:53.6]} 34. Rxd6 {[%clk 0:01:34.9]}
34... Kxa7 {[%clk 0:00:53.4]} 35. Kxc5 {[%clk 0:01:31.9]} 35... Rf8 {[%clk
0:00:45.6]} 36. Rd7+ {[%clk 0:01:29.9]} 36... Ka6 {[%clk 0:00:46.7]} 37. Rxh7
{[%clk 0:01:30.4]} 37... Rc8+ {[%clk 0:00:47.2]} 38. Kd5 {[%clk 0:01:30.7]}
38... Rxc2 {[%clk 0:00:48.9]} 39. g4 {[%clk 0:01:30.7]} 39... Rg2 {[%clk
0:00:48.5]} 40. g5 {[%clk 0:01:31.4]} 40... Kb6 {[%clk 0:00:46.7]} 41. Rh6
{[%clk 0:01:31.3]} 41... Rg4 {[%clk 0:00:48.5]} 42. Rxg6+ {[%clk 0:01:32.5]}
42... Kc7 {[%clk 0:00:48.1]} 43. h5 {[%clk 0:01:34.4]} 43... Kd7 {[%clk
0:00:48.7]} 44. h6 {[%clk 0:01:35.4]} 44... Ke7 {[%clk 0:00:50.6]} 45. Rg7+
{[%clk 0:01:36.2]} 45... Kf8 {[%clk 0:00:50.6]} 46. Kxe5 {[%clk 0:01:38.1]}
46... Rg1 {[%clk 0:00:49.9]} 47. Rb7 {[%clk 0:01:35.3]} 47... Rxg5+ {[%clk
0:00:50.3]} 48. Kf6 {[%clk 0:01:36.6]} 48... Rb5 {[%clk 0:00:16.8]} 49. Rxb5
{[%clk 0:01:35.3]} 49... Kg8 {[%clk 0:00:12.4]} 50. Rb8+ {[%clk 0:01:36.3]}
50... Kh7 {[%clk 0:00:10.3]} 51. Rc8 {[%clk 0:01:38.2]} 51... Kxh6 {[%clk
0:00:09.3]} 52. Rh8# {[%clk 0:01:40.1]} 1-0

[Event "*** Titled Tuesday Blitz"]
[Site "Chess.com"]
[Date "2018.04.03"]
[Round "1"]
[White "schoolmeester"]
[Black "ChesterF"]
[Result "1-0"]
[WhiteElo "2652"]
[BlackElo "2304"]
[TimeControl "180+2"]
[EndTime "13:08:10 PDT"]
[Termination "schoolmeester won on time"]

1. e4 {[%clk 0:03:01.8]} 1... e5 {[%clk 0:03:00.6]} 2. f4 {[%clk 0:03:00.9]}
2... exf4 {[%clk 0:02:59.6]} 3. Nc3 {[%clk 0:03:01.1]} 3... Qh4+ {[%clk
0:02:57.4]} 4. Ke2 {[%clk 0:03:01.5]} 4... Qd8 {[%clk 0:02:57.8]} 5. d4 {[%clk
0:02:59.8]} 5... Nf6 {[%clk 0:02:29.4]} 6. e5 {[%clk 0:02:45.3]} 6... Nh5 {[%clk
0:02:26.2]} 7. Nf3 {[%clk 0:02:45.8]} 7... d6 {[%clk 0:02:23.9]} 8. Kf2 {[%clk
0:02:40.9]} 8... Nc6 {[%clk 0:02:23.5]} 9. Bb5 {[%clk 0:02:39]} 9... Bd7 {[%clk
0:02:22.7]} 10. Re1 {[%clk 0:02:38.4]} 10... Be7 {[%clk 0:02:23.7]} 11. e6
{[%clk 0:02:19.3]} 11... fxe6 {[%clk 0:02:17.5]} 12. d5 {[%clk 0:02:16.2]} 12...
Bh4+ {[%clk 0:01:58.6]} 13. Kg1 {[%clk 0:02:11.1]} 13... Bxe1 {[%clk 0:01:57.2]}
14. Nxe1 {[%clk 0:02:11.7]} 14... Qg5 {[%clk 0:01:46.4]} 15. Nf3 {[%clk
0:02:04.1]} 15... Qh6 {[%clk 0:01:42.3]} 16. dxc6 {[%clk 0:02:02.5]} 16... bxc6
{[%clk 0:01:43.3]} 17. Bc4 {[%clk 0:01:57.3]} 17... O-O {[%clk 0:01:42.1]} 18.
b3 {[%clk 0:01:57.9]} 18... Kh8 {[%clk 0:01:42.5]} 19. Bb2 {[%clk 0:01:57.4]}
19... e5 {[%clk 0:01:43.8]} 20. Nxe5 {[%clk 0:01:57]} 20... dxe5 {[%clk
0:01:26.7]} 21. Qxd7 {[%clk 0:01:56.8]} 21... f3 {[%clk 0:01:27.6]} 22. Qg4
{[%clk 0:01:34.6]} 22... Rf4 {[%clk 0:00:11.4]} 23. Qh3 {[%clk 0:01:29.9]} 23...
Raf8 {[%clk 0:00:12.7]} 24. g3 {[%clk 0:00:51.4]} 24... f2+ {[%clk 0:00:05.9]}
25. Kf1 {[%clk 0:00:49.8]} 25... R4f6 {[%clk 0:00:06.6]} 26. Bc1 {[%clk
0:00:46]} 26... Qg6 {[%clk 0:00:06.7]} 27. Bd3 {[%clk 0:00:46]} 27... e4 {[%clk
0:00:04.4]} 28. Nxe4 {[%clk 0:00:36.6]} 28... Re6 {[%clk 0:00:05.4]} 29. Qh4
{[%clk 0:00:24.3]} 1-0

[Event "*** Titled Tuesday Blitz"]
[Site "Chess.com"]
[Date "2018.04.03"]
[Round "1"]
[White "XiaoKangZhong"]
[Black "Blitzstream"]
[Result "0-1"]
[WhiteElo "2044"]
[BlackElo "2464"]
[TimeControl "180+2"]
[EndTime "13:08:19 PDT"]
[Termination "Blitzstream won by checkmate"]

1. e4 {[%clk 0:03:01]} 1... d5 {[%clk 0:03:00.8]} 2. exd5 {[%clk 0:02:58.3]}
2... Qxd5 {[%clk 0:03:02.7]} 3. Nc3 {[%clk 0:02:57.6]} 3... Qa5 {[%clk 0:03:03]}
4. g3 {[%clk 0:02:58.7]} 4... Nf6 {[%clk 0:03:03.9]} 5. Bg2 {[%clk 0:02:59.2]}
5... c6 {[%clk 0:03:05.5]} 6. Nge2 {[%clk 0:02:59.8]} 6... Bf5 {[%clk
0:03:06.6]} 7. O-O {[%clk 0:03:00.8]} 7... e6 {[%clk 0:03:07.3]} 8. d4 {[%clk
0:03:01.6]} 8... Nbd7 {[%clk 0:03:08.2]} 9. Bf4 {[%clk 0:03:01.9]} 9... Be7
{[%clk 0:03:08.5]} 10. a3 {[%clk 0:02:59.9]} 10... O-O {[%clk 0:03:07.7]} 11. b4
{[%clk 0:03:00.7]} 11... Qd8 {[%clk 0:03:08.6]} 12. Na4 {[%clk 0:02:56.7]} 12...
Nd5 {[%clk 0:03:01.5]} 13. Bd2 {[%clk 0:02:49.8]} 13... h6 {[%clk 0:03:00.9]}
14. c4 {[%clk 0:02:48.5]} 14... N5b6 {[%clk 0:02:59.6]} 15. Nxb6 {[%clk
0:02:46.8]} 15... axb6 {[%clk 0:03:01]} 16. Qb3 {[%clk 0:02:46.6]} 16... Nf6
{[%clk 0:02:55.4]} 17. Be3 {[%clk 0:02:44.7]} 17... Be4 {[%clk 0:02:53.8]} 18.
Nc3 {[%clk 0:02:42.6]} 18... Bxg2 {[%clk 0:02:53.9]} 19. Kxg2 {[%clk 0:02:43.6]}
19... Qc7 {[%clk 0:02:52.6]} 20. Rfd1 {[%clk 0:02:35.4]} 20... Rfd8 {[%clk
0:02:52.8]} 21. a4 {[%clk 0:02:28.4]} 21... c5 {[%clk 0:02:14.4]} 22. dxc5
{[%clk 0:02:21.9]} 22... bxc5 {[%clk 0:02:12.4]} 23. b5 {[%clk 0:02:11.3]} 23...
b6 {[%clk 0:02:05.3]} 24. Ne2 {[%clk 0:02:04.6]} 24... Ne4 {[%clk 0:02:00.2]}
25. f3 {[%clk 0:01:57.7]} 25... Nd6 {[%clk 0:01:42.5]} 26. Bd2 {[%clk
0:01:54.2]} 26... Nf5 {[%clk 0:01:42.6]} 27. Be1 {[%clk 0:01:36.8]} 27... Bf6
{[%clk 0:01:37.3]} 28. Rxd8+ {[%clk 0:01:35.4]} 28... Rxd8 {[%clk 0:01:37.6]}
29. Rc1 {[%clk 0:01:34.5]} 29... Qe5 {[%clk 0:01:34.3]} 30. Qa2 {[%clk
0:01:27.3]} 30... Qe3 {[%clk 0:01:19.9]} 31. Bf2 {[%clk 0:01:19.7]} 31... Qd2
{[%clk 0:01:10.3]} 32. Rc2 {[%clk 0:01:14.1]} 32... Qb4 {[%clk 0:01:03.5]} 33.
Rc1 {[%clk 0:00:47.4]} 33... Rd2 {[%clk 0:00:51]} 34. Rc2 {[%clk 0:00:47]} 34...
Rd3 {[%clk 0:00:52]} 35. a5 {[%clk 0:00:42.5]} 35... Ra3 {[%clk 0:00:51.4]} 36.
Be1 {[%clk 0:00:22.2]} 36... Rxa2 {[%clk 0:00:48.1]} 37. Bxb4 {[%clk 0:00:23.1]}
37... Rxc2 {[%clk 0:00:49.2]} 38. Bxc5 {[%clk 0:00:20.1]} 38... bxc5 {[%clk
0:00:48.2]} 39. b6 {[%clk 0:00:20.6]} 39... Rxe2+ {[%clk 0:00:44.3]} 40. Kf1
{[%clk 0:00:20.3]} 40... Ra2 {[%clk 0:00:44]} 41. b7 {[%clk 0:00:20.4]} 41...
Be5 {[%clk 0:00:45.1]} 42. f4 {[%clk 0:00:21.8]} 42... Ne3+ {[%clk 0:00:45.6]}
43. Kg1 {[%clk 0:00:20.3]} 43... Bb8 {[%clk 0:00:46.6]} 44. a6 {[%clk
0:00:20.7]} 44... Rxa6 {[%clk 0:00:47.2]} 45. Kh1 {[%clk 0:00:22.2]} 45... Nxc4
{[%clk 0:00:49.1]} 46. h4 {[%clk 0:00:23.5]} 46... Nd6 {[%clk 0:00:51]} 47. Kh2
{[%clk 0:00:25]} 47... Nxb7 {[%clk 0:00:52.8]} 48. Kh3 {[%clk 0:00:26.8]} 48...
Rd6 {[%clk 0:00:54.4]} 49. Kg4 {[%clk 0:00:28.7]} 49... c4 {[%clk 0:00:56.3]}
50. Kf3 {[%clk 0:00:30.4]} 50... c3 {[%clk 0:00:58.1]} 51. Ke3 {[%clk
0:00:32.1]} 51... c2 {[%clk 0:01:00]} 52. Ke4 {[%clk 0:00:33.9]} 52... c1=Q
{[%clk 0:01:01.9]} 53. Kf3 {[%clk 0:00:35.7]} 53... Qd1+ {[%clk 0:01:03.1]} 54.
Kg2 {[%clk 0:00:36.4]} 54... Qg4 {[%clk 0:01:04.6]} 55. Kh2 {[%clk 0:00:37.3]}
55... Rd2+ {[%clk 0:01:06.5]} 56. Kh1 {[%clk 0:00:38.9]} 56... Qd1# {[%clk
0:01:08]} 0-1

[Event "*** Titled Tuesday Blitz"]
[Site "Chess.com"]
[Date "2018.04.03"]
[Round "1"]
[White "Mistheoretical"]
[Black "SantoBlue"]
[Result "0-1"]
[WhiteElo "2281"]
[BlackElo "2614"]
[TimeControl "180+2"]
[EndTime "13:08:21 PDT"]
[Termination "SantoBlue won on time"]

1. d4 {[%clk 0:03:01.9]} 1... Nf6 {[%clk 0:02:58.1]} 2. Bg5 {[%clk 0:03:02.5]}
2... e6 {[%clk 0:02:59]} 3. Nd2 {[%clk 0:03:02.9]} 3... h6 {[%clk 0:02:57.5]} 4.
Bh4 {[%clk 0:03:03.7]} 4... d5 {[%clk 0:02:53.5]} 5. e3 {[%clk 0:03:00.2]} 5...
Be7 {[%clk 0:02:54.4]} 6. Bd3 {[%clk 0:03:00.7]} 6... c5 {[%clk 0:02:52.9]} 7.
c3 {[%clk 0:03:01.5]} 7... b6 {[%clk 0:02:52]} 8. Qe2 {[%clk 0:02:58.5]} 8...
O-O {[%clk 0:02:45.6]} 9. f4 {[%clk 0:02:57.1]} 9... cxd4 {[%clk 0:02:38.1]} 10.
exd4 {[%clk 0:02:56.6]} 10... Qc7 {[%clk 0:02:36.2]} 11. g3 {[%clk 0:02:49.3]}
11... Re8 {[%clk 0:02:28.8]} 12. Ngf3 {[%clk 0:02:48.2]} 12... Bb7 {[%clk
0:02:26.6]} 13. O-O {[%clk 0:02:43.7]} 13... Nbd7 {[%clk 0:02:24.5]} 14. Ne5
{[%clk 0:02:38.9]} 14... Nf8 {[%clk 0:02:18.6]} 15. Rae1 {[%clk 0:02:23.7]}
15... N6d7 {[%clk 0:02:10.8]} 16. Bxe7 {[%clk 0:02:16.7]} 16... Rxe7 {[%clk
0:02:12.7]} 17. Qg4 {[%clk 0:02:03.8]} 17... f6 {[%clk 0:01:54.7]} 18. Nef3
{[%clk 0:01:44.4]} 18... a5 {[%clk 0:01:48.4]} 19. Rf2 {[%clk 0:01:42.1]} 19...
Ba6 {[%clk 0:01:47.7]} 20. Bb1 {[%clk 0:01:43.3]} 20... b5 {[%clk 0:01:38]} 21.
Rfe2 {[%clk 0:01:11.9]} 21... b4 {[%clk 0:01:30.3]} 22. Rxe6 {[%clk 0:01:11]}
22... Nxe6 {[%clk 0:01:26.7]} 23. Rxe6 {[%clk 0:01:11.7]} 23... Nf8 {[%clk
0:00:34.1]} 24. Rxf6 {[%clk 0:01:05.3]} 24... bxc3 {[%clk 0:00:29.6]} 25. bxc3
{[%clk 0:01:02.4]} 25... Qxc3 {[%clk 0:00:29.8]} 26. Qf5 {[%clk 0:00:13.4]}
26... gxf6 {[%clk 0:00:20.6]} 27. Qxd5+ {[%clk 0:00:13.8]} 27... Kg7 {[%clk
0:00:21.1]} 28. Qxa8 {[%clk 0:00:09.5]} 28... Qc1+ {[%clk 0:00:14.6]} 29. Kg2
{[%clk 0:00:08.4]} 29... Re2+ {[%clk 0:00:15.1]} 30. Kh3 {[%clk 0:00:09.6]}
30... Bc8+ {[%clk 0:00:15.6]} 31. Kh4 {[%clk 0:00:06.9]} 31... Qxd2 {[%clk
0:00:07]} 32. Qa7+ {[%clk 0:00:04.8]} 32... Kh8 {[%clk 0:00:07.3]} 0-1

[Event "*** Titled Tuesday Blitz"]
[Site "Chess.com"]
[Date "2018.04.03"]
[Round "1"]
[White "Arash_Tahbaz"]
[Black "Marcin"]
[Result "1-0"]
[WhiteElo "2611"]
[BlackElo "2280"]
[TimeControl "180+2"]
[EndTime "13:08:22 PDT"]
[Termination "Arash_Tahbaz won by resignation"]

1. e4 {[%clk 0:02:59]} 1... e5 {[%clk 0:03:00.3]} 2. Nf3 {[%clk 0:02:57.5]} 2...
Nc6 {[%clk 0:03:01]} 3. Bc4 {[%clk 0:02:57]} 3... Nf6 {[%clk 0:03:01]} 4. d3
{[%clk 0:02:56.7]} 4... Be7 {[%clk 0:02:55.2]} 5. O-O {[%clk 0:02:57.7]} 5...
O-O {[%clk 0:02:53.9]} 6. c3 {[%clk 0:02:59.1]} 6... d6 {[%clk 0:02:53.9]} 7.
Bb3 {[%clk 0:02:56]} 7... Na5 {[%clk 0:02:54.5]} 8. Bc2 {[%clk 0:02:56.1]} 8...
c5 {[%clk 0:02:56.1]} 9. Nbd2 {[%clk 0:02:56.4]} 9... Nc6 {[%clk 0:02:57]} 10.
h3 {[%clk 0:02:54.9]} 10... h6 {[%clk 0:02:56.9]} 11. Re1 {[%clk 0:02:56.2]}
11... Be6 {[%clk 0:02:58.3]} 12. Nf1 {[%clk 0:02:56.2]} 12... Re8 {[%clk
0:02:59.2]} 13. Ng3 {[%clk 0:02:57.4]} 13... Bf8 {[%clk 0:03:00.4]} 14. d4
{[%clk 0:02:30.4]} 14... cxd4 {[%clk 0:02:56.1]} 15. cxd4 {[%clk 0:02:32.3]}
15... Nxd4 {[%clk 0:02:55]} 16. Nxd4 {[%clk 0:02:32.1]} 16... exd4 {[%clk
0:02:56.9]} 17. Ne2 {[%clk 0:02:18.4]} 17... d5 {[%clk 0:02:52.3]} 18. e5 {[%clk
0:02:19.1]} 18... Nd7 {[%clk 0:02:45]} 19. Nxd4 {[%clk 0:02:19.6]} 19... Rc8
{[%clk 0:02:45.1]} 20. f4 {[%clk 0:02:16]} 20... Bc5 {[%clk 0:02:41.8]} 21. Be3
{[%clk 0:02:14.5]} 21... Qh4 {[%clk 0:01:54.1]} 22. Qd2 {[%clk 0:01:36.1]} 22...
Bxh3 {[%clk 0:01:29.9]} 23. Qd3 {[%clk 0:00:55.6]} 23... Qg3 {[%clk 0:01:06]}
24. Re2 {[%clk 0:00:43]} 24... Bxd4 {[%clk 0:01:02.6]} 25. Bxd4 {[%clk
0:00:31.8]} 25... Qxd3 {[%clk 0:01:03.3]} 26. Bxd3 {[%clk 0:00:33.7]} 26... Bg4
{[%clk 0:01:04.6]} 27. Re3 {[%clk 0:00:32]} 27... Nc5 {[%clk 0:01:04.3]} 28. Bb5
{[%clk 0:00:29.9]} 28... Red8 {[%clk 0:01:04.3]} 29. Rf1 {[%clk 0:00:23.8]}
29... a6 {[%clk 0:01:04.1]} 30. Be2 {[%clk 0:00:18.3]} 30... Bxe2 {[%clk
0:00:59.5]} 31. Rxe2 {[%clk 0:00:19.8]} 31... Ne6 {[%clk 0:01:00.9]} 32. Bb6
{[%clk 0:00:20.4]} 32... Re8 {[%clk 0:01:00.1]} 33. f5 {[%clk 0:00:21.8]} 33...
Ng5 {[%clk 0:01:00.1]} 34. Rd1 {[%clk 0:00:22.7]} 34... Rc6 {[%clk 0:00:44.4]}
35. Bf2 {[%clk 0:00:24.1]} 35... Rd8 {[%clk 0:00:44.5]} 36. Red2 {[%clk
0:00:24.6]} 36... Ne4 {[%clk 0:00:42.5]} 37. Rxd5 {[%clk 0:00:25.6]} 37... Rxd5
{[%clk 0:00:43.6]} 38. Rxd5 {[%clk 0:00:27.5]} 38... Nxf2 {[%clk 0:00:45.2]} 39.
Kxf2 {[%clk 0:00:28.8]} 39... Rc2+ {[%clk 0:00:46.7]} 40. Kf3 {[%clk 0:00:28.2]}
40... Rxb2 {[%clk 0:00:47.5]} 41. Rd8+ {[%clk 0:00:24.3]} 41... Kh7 {[%clk
0:00:48.5]} 42. e6 {[%clk 0:00:24.7]} 42... fxe6 {[%clk 0:00:44.6]} 43. fxe6
{[%clk 0:00:26.6]} 1-0

[Event "*** Titled Tuesday Blitz"]
[Site "Chess.com"]
[Date "2018.04.03"]
[Round "1"]
[White "matiss90"]
[Black "jcibarra"]
[Result "0-1"]
[WhiteElo "2362"]
[BlackElo "2701"]
[TimeControl "180+2"]
[EndTime "13:08:26 PDT"]
[Termination "jcibarra won on time"]

1. e4 {[%clk 0:03:01.2]} 1... e6 {[%clk 0:02:59.3]} 2. d4 {[%clk 0:03:01.9]}
2... d5 {[%clk 0:03:00.2]} 3. Nc3 {[%clk 0:03:03.2]} 3... Nf6 {[%clk 0:03:00]}
4. Bg5 {[%clk 0:03:03.4]} 4... dxe4 {[%clk 0:03:00.2]} 5. Nxe4 {[%clk
0:03:04.1]} 5... Be7 {[%clk 0:03:01.5]} 6. Nxf6+ {[%clk 0:03:03.1]} 6... gxf6
{[%clk 0:03:03.4]} 7. Be3 {[%clk 0:03:02.4]} 7... b6 {[%clk 0:02:58.2]} 8. Bb5+
{[%clk 0:03:02.8]} 8... c6 {[%clk 0:02:54.5]} 9. Bd3 {[%clk 0:03:03.6]} 9... f5
{[%clk 0:02:47]} 10. Nf3 {[%clk 0:02:51.6]} 10... Nd7 {[%clk 0:02:46]} 11. c4
{[%clk 0:02:43.5]} 11... Bb7 {[%clk 0:02:44.7]} 12. Qe2 {[%clk 0:02:33.8]} 12...
Qc7 {[%clk 0:02:43]} 13. Rc1 {[%clk 0:02:12.4]} 13... O-O {[%clk 0:02:36.2]} 14.
g4 {[%clk 0:02:10.4]} 14... fxg4 {[%clk 0:02:28.7]} 15. Rg1 {[%clk 0:02:10.9]}
15... f5 {[%clk 0:02:24.7]} 16. Bh6 {[%clk 0:01:56.5]} 16... Rf6 {[%clk
0:02:24.6]} 17. Bg5 {[%clk 0:01:55.9]} 17... Bb4+ {[%clk 0:02:25.5]} 18. Kd1
{[%clk 0:01:43.8]} 18... Rg6 {[%clk 0:02:25.4]} 19. Rxg4 {[%clk 0:00:58.4]}
19... fxg4 {[%clk 0:02:09.7]} 20. Bxg6 {[%clk 0:00:57.5]} 20... hxg6 {[%clk
0:01:57.5]} 21. Qxe6+ {[%clk 0:00:55.1]} 21... Kg7 {[%clk 0:01:58]} 22. Nh4
{[%clk 0:00:22.4]} 22... Nf8 {[%clk 0:01:42]} 23. Qf6+ {[%clk 0:00:19.3]} 23...
Kh7 {[%clk 0:01:33.5]} 24. c5 {[%clk 0:00:16.4]} 24... Re8 {[%clk 0:01:14.2]}
25. Kc2 {[%clk 0:00:15.1]} 25... bxc5 {[%clk 0:01:09.8]} 26. Kb1 {[%clk
0:00:08.9]} 26... cxd4 {[%clk 0:01:08.9]} 27. h3 {[%clk 0:00:09]} 27... Qe7
{[%clk 0:01:07]} 28. hxg4 {[%clk 0:00:04.8]} 28... Qxf6 {[%clk 0:01:07.2]} 29.
Bxf6 {[%clk 0:00:06.4]} 29... c5 {[%clk 0:01:04]} 30. f3 {[%clk 0:00:04.7]}
30... Re1 {[%clk 0:01:03.3]} 31. a3 {[%clk 0:00:03.8]} 31... Bd2 {[%clk
0:01:03.1]} 32. Rxe1 {[%clk 0:00:03.6]} 32... Bxe1 {[%clk 0:01:05]} 33. f4
{[%clk 0:00:03.6]} 33... Nd7 {[%clk 0:01:03.2]} 34. Bg5 {[%clk 0:00:03.8]} 34...
Be4+ {[%clk 0:01:03.5]} 35. Kc1 {[%clk 0:00:03.9]} 35... d3 {[%clk 0:01:04.1]}
36. f5 {[%clk 0:00:04.6]} 36... gxf5 {[%clk 0:01:00.8]} 37. Nxf5 {[%clk
0:00:04.3]} 37... Bxf5 {[%clk 0:01:01.7]} 38. gxf5 {[%clk 0:00:06.2]} 38... c4
{[%clk 0:01:01.5]} 39. Be3 {[%clk 0:00:03.9]} 39... a6 {[%clk 0:01:00.7]} 40.
Bd2 {[%clk 0:00:04.2]} 40... Bxd2+ {[%clk 0:00:59.4]} 41. Kxd2 {[%clk
0:00:06.1]} 41... Nc5 {[%clk 0:01:00.9]} 42. Kc3 {[%clk 0:00:03.8]} 42... Ne4+
{[%clk 0:01:01.5]} 0-1

[Event "*** Titled Tuesday Blitz"]
[Site "Chess.com"]
[Date "2018.04.03"]
[Round "1"]
[White "Fandorine"]
[Black "Rumpel-VK"]
[Result "1-0"]
[WhiteElo "2714"]
[BlackElo "2362"]
[TimeControl "180+2"]
[EndTime "13:08:31 PDT"]
[Termination "Fandorine won on time"]

1. e4 {[%clk 0:03:00.7]} 1... d6 {[%clk 0:03:00.2]} 2. d4 {[%clk 0:03:00.5]}
2... Nf6 {[%clk 0:03:00.9]} 3. f3 {[%clk 0:03:01.8]} 3... e5 {[%clk 0:03:01.3]}
4. dxe5 {[%clk 0:03:03.4]} 4... dxe5 {[%clk 0:03:01.8]} 5. Qxd8+ {[%clk
0:03:05]} 5... Kxd8 {[%clk 0:03:02.5]} 6. Bc4 {[%clk 0:03:06.6]} 6... Ke8 {[%clk
0:03:02]} 7. Be3 {[%clk 0:03:07.3]} 7... a6 {[%clk 0:03:01.5]} 8. Ne2 {[%clk
0:03:03]} 8... Nc6 {[%clk 0:02:54.1]} 9. Nd2 {[%clk 0:03:00.7]} 9... Bd6 {[%clk
0:02:52.1]} 10. Nc1 {[%clk 0:02:59.4]} 10... Ke7 {[%clk 0:02:51.7]} 11. Nd3
{[%clk 0:03:00.2]} 11... Be6 {[%clk 0:02:51.2]} 12. Bxe6 {[%clk 0:02:59.2]}
12... Kxe6 {[%clk 0:02:50.8]} 13. Ke2 {[%clk 0:02:55.1]} 13... Rhd8 {[%clk
0:02:45.3]} 14. c3 {[%clk 0:02:46.4]} 14... b6 {[%clk 0:02:41.1]} 15. Rhd1
{[%clk 0:02:47.8]} 15... Be7 {[%clk 0:02:33.4]} 16. Nc4 {[%clk 0:02:42.6]} 16...
Nd7 {[%clk 0:02:27.5]} 17. f4 {[%clk 0:02:13.4]} 17... f6 {[%clk 0:02:24.6]} 18.
f5+ {[%clk 0:02:12]} 18... Kf7 {[%clk 0:02:24.2]} 19. g4 {[%clk 0:02:00.9]}
19... h6 {[%clk 0:02:22.5]} 20. h3 {[%clk 0:01:59.2]} 20... Na5 {[%clk
0:01:34.8]} 21. Nxa5 {[%clk 0:01:34.4]} 21... bxa5 {[%clk 0:01:36.7]} 22. Rd2
{[%clk 0:01:34.5]} 22... Rab8 {[%clk 0:01:35.1]} 23. Rad1 {[%clk 0:01:35.2]}
23... Nb6 {[%clk 0:01:33.3]} 24. b3 {[%clk 0:01:31.7]} 24... a4 {[%clk 0:01:34]}
25. Bxb6 {[%clk 0:01:27.5]} 25... cxb6 {[%clk 0:01:27.4]} 26. bxa4 {[%clk
0:01:07.8]} 26... Rdc8 {[%clk 0:01:17.4]} 27. Nb4 {[%clk 0:01:03.5]} 27... Bxb4
{[%clk 0:01:05.3]} 28. cxb4 {[%clk 0:01:03.8]} 28... Rb7 {[%clk 0:00:52.3]} 29.
Rd7+ {[%clk 0:01:00.7]} 29... Rxd7 {[%clk 0:00:52.8]} 30. Rxd7+ {[%clk
0:01:02.6]} 30... Kf8 {[%clk 0:00:53.4]} 31. Kd3 {[%clk 0:00:56.5]} 31... Rc1
{[%clk 0:00:52]} 32. Rb7 {[%clk 0:00:55.5]} 32... Rd1+ {[%clk 0:00:47.6]} 33.
Kc3 {[%clk 0:00:53.9]} 33... Rc1+ {[%clk 0:00:44.4]} 34. Kd2 {[%clk 0:00:52.3]}
34... Ra1 {[%clk 0:00:41.3]} 35. Kc2 {[%clk 0:00:42.8]} 35... a5 {[%clk
0:00:14.3]} 36. Rxb6 {[%clk 0:00:34.4]} 36... axb4 {[%clk 0:00:14.1]} 37. Kb2
{[%clk 0:00:34.2]} 37... Rh1 {[%clk 0:00:12.2]} 38. a5 {[%clk 0:00:31.2]} 38...
Rh2+ {[%clk 0:00:11.8]} 39. Kb3 {[%clk 0:00:32.5]} 39... Rxh3+ {[%clk
0:00:12.7]} 40. Kxb4 {[%clk 0:00:33.8]} 40... Re3 {[%clk 0:00:12.2]} 41. a6
{[%clk 0:00:35.1]} 41... Rxe4+ {[%clk 0:00:13.2]} 42. Kb5 {[%clk 0:00:36.6]} 1-0